[Event "*** SCC Grand Prix: Titled Tuesday Blitz"]
[Site "Chess.com"]
[Date "2020.07.07"]
[Round "4"]
[White "MasterKroket"]
[Black "aisha_zakirova"]
[Result "1-0"]
[WhiteElo "2398"]
[BlackElo "2131"]
[TimeControl "180+1"]
[EndTime "10:36:22 PDT"]
[Termination "MasterKroket won by resignation"]

1. d4 {[%clk 0:03:00.9]} 1... Nf6 {[%clk 0:02:59]} 2. c4 {[%clk 0:03:00.8]} 2...
e6 {[%clk 0:02:59]} 3. Nf3 {[%clk 0:03:00.7]} 3... b6 {[%clk 0:02:58.1]} 4. a3
{[%clk 0:03:00.1]} 4... Ba6 {[%clk 0:02:50.9]} 5. Qc2 {[%clk 0:02:55.7]} 5... c6
{[%clk 0:02:42.9]} 6. e4 {[%clk 0:02:54.7]} 6... d5 {[%clk 0:02:37.5]} 7. e5
{[%clk 0:02:51.3]} 7... Ne4 {[%clk 0:02:17]} 8. Nbd2 {[%clk 0:02:49.8]} 8...
Nxd2 {[%clk 0:02:16.1]} 9. Bxd2 {[%clk 0:02:50.2]} 9... Bb7 {[%clk 0:02:09.8]}
10. Bd3 {[%clk 0:02:38.9]} 10... Nd7 {[%clk 0:02:06.8]} 11. O-O {[%clk
0:02:38.5]} 11... Be7 {[%clk 0:02:05.3]} 12. b4 {[%clk 0:02:36.2]} 12... h6
{[%clk 0:02:03.5]} 13. c5 {[%clk 0:02:33.4]} 13... O-O {[%clk 0:02:02.5]} 14. h3
{[%clk 0:02:32.1]} 14... a5 {[%clk 0:01:53.9]} 15. Rfc1 {[%clk 0:02:24.6]} 15...
Ba6 {[%clk 0:01:45.4]} 16. Bxa6 {[%clk 0:02:24.5]} 16... Rxa6 {[%clk 0:01:41]}
17. b5 {[%clk 0:02:25.2]} 17... Ra7 {[%clk 0:01:29.7]} 18. bxc6 {[%clk
0:02:21.2]} 18... Nb8 {[%clk 0:01:29.5]} 19. cxb6 {[%clk 0:02:20.8]} 19... Qxb6
{[%clk 0:01:29.5]} 20. c7 {[%clk 0:02:21.4]} 20... Nd7 {[%clk 0:01:17.7]} 21.
c8=Q {[%clk 0:02:20.3]} 21... Rxc8 {[%clk 0:01:17.5]} 22. Qxc8+ {[%clk
0:02:20.9]} 22... Kh7 {[%clk 0:01:17.8]} 23. Rab1 {[%clk 0:02:19.6]} 23... Qa6
{[%clk 0:01:12.8]} 24. Qxa6 {[%clk 0:02:19.6]} 24... Rxa6 {[%clk 0:01:12.9]} 25.
Rc7 {[%clk 0:02:20.3]} 1-0

[Event "*** SCC Grand Prix: Titled Tuesday Blitz"]
[Site "Chess.com"]
[Date "2020.07.07"]
[Round "4"]
[White "nikitakhoroshev"]
[Black "Hikaru"]
[Result "0-1"]
[WhiteElo "2517"]
[BlackElo "3214"]
[TimeControl "180+1"]
[EndTime "10:36:28 PDT"]
[Termination "Hikaru won by resignation"]

1. d4 {[%clk 0:03:00.9]} 1... Nf6 {[%clk 0:02:55.5]} 2. c4 {[%clk 0:02:59.5]}
2... g6 {[%clk 0:02:49.3]} 3. Nc3 {[%clk 0:02:59.5]} 3... Bg7 {[%clk 0:02:49.8]}
4. e4 {[%clk 0:02:59.2]} 4... d6 {[%clk 0:02:49.4]} 5. Be2 {[%clk 0:02:59.2]}
5... O-O {[%clk 0:02:48.5]} 6. Bg5 {[%clk 0:02:59.7]} 6... c5 {[%clk 0:02:44.5]}
7. d5 {[%clk 0:02:58.7]} 7... e6 {[%clk 0:02:44.6]} 8. Qd2 {[%clk 0:02:57.6]}
8... exd5 {[%clk 0:02:44.4]} 9. cxd5 {[%clk 0:02:58.5]} 9... a6 {[%clk
0:02:42.9]} 10. a4 {[%clk 0:02:57.8]} 10... Re8 {[%clk 0:02:40.3]} 11. f3 {[%clk
0:02:57.8]} 11... Qa5 {[%clk 0:02:39.8]} 12. Ra3 {[%clk 0:02:56.4]} 12... h5
{[%clk 0:02:37.2]} 13. Bf4 {[%clk 0:02:47.6]} 13... Qc7 {[%clk 0:02:35.1]} 14.
a5 {[%clk 0:02:45.1]} 14... Nbd7 {[%clk 0:02:34.3]} 15. Nh3 {[%clk 0:02:44.5]}
15... c4 {[%clk 0:02:29.1]} 16. Nf2 {[%clk 0:02:43.4]} 16... Nc5 {[%clk
0:02:23.2]} 17. Bxc4 {[%clk 0:02:09.1]} 17... Ncxe4 {[%clk 0:02:22.2]} 18. Ncxe4
{[%clk 0:02:09.2]} 18... Nxe4 {[%clk 0:02:17.8]} 19. fxe4 {[%clk 0:02:04.5]}
19... Qxc4 {[%clk 0:02:17.7]} 20. Bxd6 {[%clk 0:02:04.4]} 20... Bf5 {[%clk
0:02:05.7]} 21. Qb4 {[%clk 0:01:50.2]} 21... Qxb4+ {[%clk 0:01:48.6]} 22. Bxb4
{[%clk 0:01:51.1]} 22... Bxe4 {[%clk 0:01:49.3]} 23. Nxe4 {[%clk 0:01:44.1]}
23... Rxe4+ {[%clk 0:01:48.9]} 0-1

[Event "*** SCC Grand Prix: Titled Tuesday Blitz"]
[Site "Chess.com"]
[Date "2020.07.07"]
[Round "4"]
[White "ExtremeLearner"]
[Black "Marty435"]
[Result "0-1"]
[WhiteElo "2331"]
[BlackElo "2515"]
[TimeControl "180+1"]
[EndTime "10:36:33 PDT"]
[Termination "Marty435 won by resignation"]

1. d4 {[%clk 0:03:00.9]} 1... d5 {[%clk 0:02:59.8]} 2. c4 {[%clk 0:03:00.5]}
2... Nc6 {[%clk 0:02:59.8]} 3. Nc3 {[%clk 0:02:57.8]} 3... Nf6 {[%clk
0:02:59.1]} 4. e3 {[%clk 0:02:57.8]} 4... e6 {[%clk 0:02:54.5]} 5. Nf3 {[%clk
0:02:55]} 5... Bb4 {[%clk 0:02:51.6]} 6. Bd2 {[%clk 0:02:54.3]} 6... O-O {[%clk
0:02:50.3]} 7. Rc1 {[%clk 0:02:53.4]} 7... Ne7 {[%clk 0:02:47.5]} 8. Bd3 {[%clk
0:02:45.3]} 8... c5 {[%clk 0:02:43.2]} 9. cxd5 {[%clk 0:02:39.9]} 9... cxd4
{[%clk 0:02:39.8]} 10. Nxd4 {[%clk 0:02:33]} 10... Nexd5 {[%clk 0:02:35.4]} 11.
Nxd5 {[%clk 0:02:30.9]} 11... Bxd2+ {[%clk 0:02:35.5]} 12. Qxd2 {[%clk
0:02:31.8]} 12... Qxd5 {[%clk 0:02:35.8]} 13. Bc4 {[%clk 0:02:28.5]} 13... Qxg2
{[%clk 0:02:35.1]} 14. Ke2 {[%clk 0:02:23]} 14... e5 {[%clk 0:02:29.3]} 15. Rcg1
{[%clk 0:02:19.7]} 15... Qh3 {[%clk 0:02:12]} 16. Nb5 {[%clk 0:02:06.2]} 16...
Bg4+ {[%clk 0:02:09.6]} 17. Ke1 {[%clk 0:02:04.8]} 17... Rad8 {[%clk 0:02:06.3]}
18. Nd6 {[%clk 0:01:58.6]} 18... Ne4 {[%clk 0:01:54.9]} 19. Nxe4 {[%clk
0:01:53.4]} 19... Rxd2 {[%clk 0:01:55.1]} 20. Nxd2 {[%clk 0:01:52.5]} 20... Be6
{[%clk 0:01:47.3]} 21. Rg3 {[%clk 0:01:50.2]} 21... Qf5 {[%clk 0:01:47.1]} 22.
Bxe6 {[%clk 0:01:46.1]} 22... Qxe6 {[%clk 0:01:45.1]} 23. Rhg1 {[%clk
0:01:46.4]} 23... g6 {[%clk 0:01:44.6]} 24. b3 {[%clk 0:01:44.5]} 24... Rc8
{[%clk 0:01:39.8]} 25. Ke2 {[%clk 0:01:43.6]} 25... Rc2 {[%clk 0:01:36.7]} 0-1

[Event "*** SCC Grand Prix: Titled Tuesday Blitz"]
[Site "Chess.com"]
[Date "2020.07.07"]
[Round "4"]
[White "CyberdelChess"]
[Black "MashaFromRussia"]
[Result "0-1"]
[WhiteElo "2246"]
[BlackElo "2436"]
[TimeControl "180+1"]
[EndTime "10:36:37 PDT"]
[Termination "MashaFromRussia won by resignation"]

1. e4 {[%clk 0:03:00.9]} 1... c5 {[%clk 0:02:59.7]} 2. Nf3 {[%clk 0:03:00.4]}
2... Nc6 {[%clk 0:02:59.8]} 3. d4 {[%clk 0:03:00.4]} 3... cxd4 {[%clk
0:03:00.7]} 4. Nxd4 {[%clk 0:03:01.1]} 4... Nf6 {[%clk 0:03:01.1]} 5. Nc3 {[%clk
0:03:00.8]} 5... e5 {[%clk 0:03:01.5]} 6. Ndb5 {[%clk 0:03:00]} 6... d6 {[%clk
0:03:01.8]} 7. Bg5 {[%clk 0:02:56.9]} 7... a6 {[%clk 0:03:01.6]} 8. Na3 {[%clk
0:02:55.7]} 8... b5 {[%clk 0:03:01.5]} 9. Nd5 {[%clk 0:02:54.9]} 9... Be7 {[%clk
0:03:01.6]} 10. Bxf6 {[%clk 0:02:54.7]} 10... Bxf6 {[%clk 0:03:02.5]} 11. c3
{[%clk 0:02:55]} 11... O-O {[%clk 0:03:02.3]} 12. Nc2 {[%clk 0:02:54.7]} 12...
Bg5 {[%clk 0:03:02.5]} 13. a4 {[%clk 0:02:54.6]} 13... bxa4 {[%clk 0:03:03.4]}
14. Rxa4 {[%clk 0:02:54.9]} 14... a5 {[%clk 0:03:03.8]} 15. Be2 {[%clk
0:02:40.4]} 15... Rb8 {[%clk 0:03:00.6]} 16. Ra2 {[%clk 0:02:39.5]} 16... Kh8
{[%clk 0:02:58.4]} 17. O-O {[%clk 0:02:35.4]} 17... f5 {[%clk 0:02:56.2]} 18.
exf5 {[%clk 0:02:31.6]} 18... Bxf5 {[%clk 0:02:57.1]} 19. Bg4 {[%clk 0:02:29.6]}
19... Bg6 {[%clk 0:02:55.5]} 20. Nce3 {[%clk 0:02:23.4]} 20... Bxe3 {[%clk
0:02:40.1]} 21. Nxe3 {[%clk 0:02:23.2]} 21... Rf4 {[%clk 0:02:35.4]} 22. Nd5
{[%clk 0:02:17.3]} 22... Rf7 {[%clk 0:02:29]} 23. Qa4 {[%clk 0:02:03.8]} 23...
Bd3 {[%clk 0:01:45]} 24. Qxc6 {[%clk 0:01:58.7]} 24... Bxf1 {[%clk 0:01:43.7]}
25. Kxf1 {[%clk 0:01:59.6]} 25... Qg5 {[%clk 0:01:42.7]} 26. Ne3 {[%clk
0:01:55.4]} 26... Qxe3 {[%clk 0:01:40.4]} 0-1

[Event "*** SCC Grand Prix: Titled Tuesday Blitz"]
[Site "Chess.com"]
[Date "2020.07.07"]
[Round "4"]
[White "vanImpe"]
[Black "Artur0208"]
[Result "0-1"]
[WhiteElo "2448"]
[BlackElo "2774"]
[TimeControl "180+1"]
[EndTime "10:36:38 PDT"]
[Termination "Artur0208 won by resignation"]

1. g3 {[%clk 0:03:00.9]} 1... d5 {[%clk 0:02:59.7]} 2. Bg2 {[%clk 0:03:01.3]}
2... Nf6 {[%clk 0:03:00.6]} 3. c4 {[%clk 0:03:01.6]} 3... dxc4 {[%clk
0:02:59.6]} 4. Na3 {[%clk 0:03:01.2]} 4... e6 {[%clk 0:02:56.7]} 5. Nxc4 {[%clk
0:03:01.2]} 5... Be7 {[%clk 0:02:55.8]} 6. Nf3 {[%clk 0:03:01.3]} 6... O-O
{[%clk 0:02:56.2]} 7. O-O {[%clk 0:03:01.9]} 7... c5 {[%clk 0:02:54.4]} 8. b3
{[%clk 0:03:01.1]} 8... Nc6 {[%clk 0:02:53.2]} 9. Bb2 {[%clk 0:03:01.7]} 9...
Nd5 {[%clk 0:02:51.8]} 10. d4 {[%clk 0:02:59.8]} 10... cxd4 {[%clk 0:02:49.7]}
11. Nxd4 {[%clk 0:02:59.4]} 11... Nxd4 {[%clk 0:02:50.6]} 12. Bxd4 {[%clk
0:02:58.1]} 12... b6 {[%clk 0:02:43.5]} 13. e4 {[%clk 0:02:56.7]} 13... Nf6
{[%clk 0:02:41.8]} 14. e5 {[%clk 0:02:54.4]} 14... Nd5 {[%clk 0:02:40.8]} 15.
Ne3 {[%clk 0:02:54.9]} 15... Bb7 {[%clk 0:02:40.4]} 16. Rc1 {[%clk 0:02:51.9]}
16... Ba3 {[%clk 0:02:31.4]} 17. Rc2 {[%clk 0:02:43.3]} 17... Qd7 {[%clk
0:02:27.6]} 18. Qg4 {[%clk 0:02:37.7]} 18... Rfc8 {[%clk 0:02:14.6]} 19. Nxd5
{[%clk 0:02:32.7]} 19... Bxd5 {[%clk 0:02:11.6]} 20. Rxc8+ {[%clk 0:02:30.6]}
20... Rxc8 {[%clk 0:02:11]} 21. Rd1 {[%clk 0:02:24]} 21... Bxg2 {[%clk
0:02:09.5]} 22. Kxg2 {[%clk 0:02:24.3]} 22... Rd8 {[%clk 0:02:02]} 23. Rd2
{[%clk 0:02:19.6]} 23... Qd5+ {[%clk 0:01:50.3]} 24. Qf3 {[%clk 0:02:16.7]}
24... Bb4 {[%clk 0:01:47.7]} 25. Rd3 {[%clk 0:02:08.3]} 25... Bc5 {[%clk
0:01:45.9]} 26. Bxc5 {[%clk 0:01:59.2]} 26... Qxd3 {[%clk 0:01:44.2]} 27. Bd6
{[%clk 0:01:53.8]} 27... Qxf3+ {[%clk 0:01:43.6]} 28. Kxf3 {[%clk 0:01:54.2]}
28... Rc8 {[%clk 0:01:44.5]} 29. Ke3 {[%clk 0:01:52.5]} 29... Rc2 {[%clk
0:01:43.1]} 30. Bb8 {[%clk 0:01:48.1]} 30... Rxa2 {[%clk 0:01:42]} 0-1

[Event "*** SCC Grand Prix: Titled Tuesday Blitz"]
[Site "Chess.com"]
[Date "2020.07.07"]
[Round "4"]
[White "jonaszmb"]
[Black "731291"]
[Result "1-0"]
[WhiteElo "2478"]
[BlackElo "2607"]
[TimeControl "180+1"]
[EndTime "10:36:53 PDT"]
[Termination "jonaszmb won by resignation"]

1. e4 {[%clk 0:03:00.9]} 1... c5 {[%clk 0:02:58.6]} 2. Nf3 {[%clk 0:03:01]} 2...
e6 {[%clk 0:02:58.7]} 3. c3 {[%clk 0:03:00.7]} 3... d5 {[%clk 0:02:51.2]} 4. e5
{[%clk 0:03:00.8]} 4... Nc6 {[%clk 0:02:48]} 5. d4 {[%clk 0:03:00.5]} 5... Qb6
{[%clk 0:02:47.4]} 6. Na3 {[%clk 0:03:00.6]} 6... cxd4 {[%clk 0:02:44.1]} 7.
cxd4 {[%clk 0:03:01.5]} 7... Nh6 {[%clk 0:02:42.7]} 8. Nc2 {[%clk 0:03:00.8]}
8... Nf5 {[%clk 0:02:36.4]} 9. Bd3 {[%clk 0:02:59.4]} 9... Bd7 {[%clk
0:02:36.1]} 10. O-O {[%clk 0:02:56.2]} 10... Nfxd4 {[%clk 0:02:32.8]} 11. Nfxd4
{[%clk 0:02:55.8]} 11... Nxd4 {[%clk 0:02:33.4]} 12. Be3 {[%clk 0:02:56.2]}
12... Bc5 {[%clk 0:02:01.8]} 13. b4 {[%clk 0:02:55.5]} 13... Bxb4 {[%clk
0:01:49.7]} 14. Bxd4 {[%clk 0:02:44.3]} 14... Bc5 {[%clk 0:01:48.4]} 15. Rb1
{[%clk 0:02:44.3]} 15... Qc7 {[%clk 0:01:47.3]} 16. Bxc5 {[%clk 0:02:43.2]}
16... Qxc5 {[%clk 0:01:48.2]} 17. Rxb7 {[%clk 0:02:42.5]} 17... Bc6 {[%clk
0:01:47.3]} 18. Rb1 {[%clk 0:02:23.2]} 18... d4 {[%clk 0:01:46.4]} 19. Qg4
{[%clk 0:02:09.9]} 19... Qxe5 {[%clk 0:01:23.1]} 20. Nxd4 {[%clk 0:02:07]} 20...
h5 {[%clk 0:01:20.3]} 21. Nxc6 {[%clk 0:02:04.8]} 21... Qc3 {[%clk 0:01:13.2]}
22. Qa4 {[%clk 0:01:59.5]} 22... O-O {[%clk 0:01:08.4]} 23. Be4 {[%clk
0:01:57.6]} 1-0

[Event "*** SCC Grand Prix: Titled Tuesday Blitz"]
[Site "Chess.com"]
[Date "2020.07.07"]
[Round "4"]
[White "yamalchess"]
[Black "Chessdemon2019"]
[Result "1-0"]
[WhiteElo "2451"]
[BlackElo "2284"]
[TimeControl "180+1"]
[EndTime "10:36:55 PDT"]
[Termination "yamalchess won by checkmate"]

1. d4 {[%clk 0:03:00.9]} 1... Nf6 {[%clk 0:02:59.7]} 2. c4 {[%clk 0:03:00.9]}
2... e6 {[%clk 0:02:59.8]} 3. Nc3 {[%clk 0:03:01.4]} 3... Bb4 {[%clk 0:02:59.5]}
4. Nf3 {[%clk 0:03:01.4]} 4... b6 {[%clk 0:02:59.2]} 5. g3 {[%clk 0:03:00.6]}
5... Bb7 {[%clk 0:02:59.3]} 6. Bg2 {[%clk 0:03:01.1]} 6... O-O {[%clk
0:02:59.2]} 7. O-O {[%clk 0:03:01.3]} 7... Bxc3 {[%clk 0:02:59.2]} 8. bxc3
{[%clk 0:03:00.7]} 8... c5 {[%clk 0:02:59.9]} 9. d5 {[%clk 0:02:53.9]} 9... exd5
{[%clk 0:02:55.2]} 10. Nh4 {[%clk 0:02:53.7]} 10... d6 {[%clk 0:02:53.4]} 11.
cxd5 {[%clk 0:02:52.7]} 11... Nbd7 {[%clk 0:02:51.9]} 12. e4 {[%clk 0:02:44.3]}
12... b5 {[%clk 0:02:50.8]} 13. a4 {[%clk 0:02:40.5]} 13... a6 {[%clk
0:02:50.4]} 14. axb5 {[%clk 0:02:22.1]} 14... axb5 {[%clk 0:02:50.1]} 15. Rxa8
{[%clk 0:02:21.8]} 15... Qxa8 {[%clk 0:02:48.3]} 16. Nf5 {[%clk 0:02:21.6]}
16... Qa6 {[%clk 0:02:39.4]} 17. Bf4 {[%clk 0:02:19.8]} 17... Ne5 {[%clk
0:02:36.9]} 18. Bxe5 {[%clk 0:02:13.9]} 18... dxe5 {[%clk 0:02:37.1]} 19. Qd2
{[%clk 0:02:10.5]} 19... g6 {[%clk 0:02:32.8]} 20. Ne7+ {[%clk 0:02:01.7]} 20...
Kg7 {[%clk 0:02:32.4]} 21. Qg5 {[%clk 0:02:00.4]} 21... h6 {[%clk 0:02:23.3]}
22. Nf5+ {[%clk 0:01:59.5]} 22... Kg8 {[%clk 0:02:17.8]} 23. Nxh6+ {[%clk
0:01:58.7]} 23... Kh7 {[%clk 0:02:16.3]} 24. f4 {[%clk 0:01:42.4]} 24... exf4
{[%clk 0:01:52.8]} 25. Rxf4 {[%clk 0:01:33.2]} 25... Nd7 {[%clk 0:01:42.7]} 26.
Nxf7 {[%clk 0:01:28]} 26... Rxf7 {[%clk 0:01:42.9]} 27. Rxf7+ {[%clk 0:01:27.2]}
27... Kg8 {[%clk 0:01:41.2]} 28. Rxd7 {[%clk 0:01:26.7]} 28... Bc8 {[%clk
0:01:41]} 29. Qd8# {[%clk 0:01:25.5]} 1-0

[Event "*** SCC Grand Prix: Titled Tuesday Blitz"]
[Site "Chess.com"]
[Date "2020.07.07"]
[Round "4"]
[White "ArnieChipmunk"]
[Black "IsaacWiebe"]
[Result "1-0"]
[WhiteElo "2314"]
[BlackElo "2092"]
[TimeControl "180+1"]
[EndTime "10:36:56 PDT"]
[Termination "ArnieChipmunk won by checkmate"]

1. e4 {[%clk 0:03:00.6]} 1... e6 {[%clk 0:02:59.7]} 2. Nf3 {[%clk 0:03:00.4]}
2... d5 {[%clk 0:02:59.6]} 3. Nc3 {[%clk 0:03:00.9]} 3... Nf6 {[%clk 0:02:53.9]}
4. e5 {[%clk 0:03:01]} 4... Nfd7 {[%clk 0:02:54.1]} 5. d4 {[%clk 0:03:01]} 5...
c5 {[%clk 0:02:54.7]} 6. Bg5 {[%clk 0:03:00.9]} 6... Qb6 {[%clk 0:02:52.2]} 7.
dxc5 {[%clk 0:03:01.1]} 7... Bxc5 {[%clk 0:02:50.9]} 8. Qd2 {[%clk 0:02:52.1]}
8... Bxf2+ {[%clk 0:02:46.6]} 9. Qxf2 {[%clk 0:02:51.6]} 9... Qxb2 {[%clk
0:02:46.4]} 10. Kd2 {[%clk 0:02:51.6]} 10... Qxa1 {[%clk 0:02:45.9]} 11. Bb5
{[%clk 0:02:51.4]} 11... Qxh1 {[%clk 0:02:32.1]} 12. Qc5 {[%clk 0:02:51.2]}
12... Qxg2+ {[%clk 0:02:29.1]} 13. Kc1 {[%clk 0:02:51]} 13... Qxg5+ {[%clk
0:02:11.3]} 14. Nxg5 {[%clk 0:02:48.2]} 14... Na6 {[%clk 0:01:34.8]} 15. Qd6
{[%clk 0:02:42.5]} 15... h6 {[%clk 0:01:22.9]} 16. Nxd5 {[%clk 0:02:16.8]} 16...
exd5 {[%clk 0:01:12.6]} 17. e6 {[%clk 0:02:16.9]} 17... hxg5 {[%clk 0:00:46.3]}
18. Bxd7+ {[%clk 0:02:05.6]} 18... Kd8 {[%clk 0:00:43.3]} 19. e7# {[%clk
0:02:00.2]} 1-0

[Event "*** SCC Grand Prix: Titled Tuesday Blitz"]
[Site "Chess.com"]
[Date "2020.07.07"]
[Round "4"]
[White "Dedic8"]
[Black "Kavyev_Ruslan"]
[Result "0-1"]
[WhiteElo "2769"]
[BlackElo "2547"]
[TimeControl "180+1"]
[EndTime "10:37:03 PDT"]
[Termination "Kavyev_Ruslan won by resignation"]

1. e4 {[%clk 0:01:25.1]} 1... c5 {[%clk 0:02:58.5]} 2. Nf3 {[%clk 0:01:25.5]}
2... e6 {[%clk 0:02:58]} 3. d4 {[%clk 0:01:25.9]} 3... cxd4 {[%clk 0:02:57.6]}
4. Nxd4 {[%clk 0:01:26.8]} 4... Nf6 {[%clk 0:02:58]} 5. Nc3 {[%clk 0:01:26.9]}
5... d6 {[%clk 0:02:58.6]} 6. g4 {[%clk 0:01:26.5]} 6... h6 {[%clk 0:02:57]} 7.
h4 {[%clk 0:01:26.6]} 7... Nc6 {[%clk 0:02:54.5]} 8. Nxc6 {[%clk 0:01:17.2]}
8... bxc6 {[%clk 0:02:54.7]} 9. Rg1 {[%clk 0:01:18]} 9... d5 {[%clk 0:02:53.9]}
10. g5 {[%clk 0:01:15.7]} 10... hxg5 {[%clk 0:02:54.1]} 11. hxg5 {[%clk
0:01:15.7]} 11... Nd7 {[%clk 0:02:51.1]} 12. exd5 {[%clk 0:01:10.9]} 12... cxd5
{[%clk 0:02:51.3]} 13. g6 {[%clk 0:01:08]} 13... f6 {[%clk 0:02:42.8]} 14. Nxd5
{[%clk 0:00:52.6]} 14... exd5 {[%clk 0:02:26.9]} 15. Qxd5 {[%clk 0:00:53.5]}
15... Qe7+ {[%clk 0:02:27.3]} 16. Be3 {[%clk 0:00:54.2]} 16... Rb8 {[%clk
0:02:26.8]} 17. O-O-O {[%clk 0:00:53.5]} 17... Bb7 {[%clk 0:02:22.2]} 18. Qd2
{[%clk 0:00:48.4]} 18... Bf3 {[%clk 0:02:18.2]} 19. Re1 {[%clk 0:00:36.6]} 19...
Ne5 {[%clk 0:02:18.3]} 20. Qa5 {[%clk 0:00:33.5]} 20... Qb4 {[%clk 0:02:16.8]}
21. Qxb4 {[%clk 0:00:30.6]} 21... Bxb4 {[%clk 0:02:17.7]} 22. Bxa7 {[%clk
0:00:30.9]} 22... Bxe1 {[%clk 0:02:15.6]} 23. Bxb8 {[%clk 0:00:31]} 23... Bxf2
{[%clk 0:02:16]} 0-1

[Event "*** SCC Grand Prix: Titled Tuesday Blitz"]
[Site "Chess.com"]
[Date "2020.07.07"]
[Round "4"]
[White "MrTattaglia"]
[Black "Matibar"]
[Result "1-0"]
[WhiteElo "2933"]
[BlackElo "2736"]
[TimeControl "180+1"]
[EndTime "10:37:08 PDT"]
[Termination "MrTattaglia won by resignation"]

1. Nf3 {[%clk 0:03:00]} 1... f5 {[%clk 0:02:58.8]} 2. g3 {[%clk 0:02:59.3]} 2...
g6 {[%clk 0:02:56]} 3. d4 {[%clk 0:02:59.6]} 3... Bg7 {[%clk 0:02:56.2]} 4. c4
{[%clk 0:02:59.9]} 4... Nf6 {[%clk 0:02:56.3]} 5. Bg2 {[%clk 0:03:00.3]} 5...
O-O {[%clk 0:02:56.5]} 6. O-O {[%clk 0:03:00.5]} 6... d6 {[%clk 0:02:57.1]} 7.
Nc3 {[%clk 0:03:00.4]} 7... c6 {[%clk 0:02:56.8]} 8. d5 {[%clk 0:03:00.7]} 8...
Bd7 {[%clk 0:02:50.7]} 9. Nd4 {[%clk 0:02:59.1]} 9... Qe8 {[%clk 0:02:43.5]} 10.
Qb3 {[%clk 0:02:57.5]} 10... Na6 {[%clk 0:02:29.3]} 11. Qxb7 {[%clk 0:02:53.9]}
11... Nc5 {[%clk 0:02:29.3]} 12. Qc7 {[%clk 0:02:54.3]} 12... cxd5 {[%clk
0:02:16.8]} 13. Nxd5 {[%clk 0:02:52.9]} 13... Nxd5 {[%clk 0:02:11.4]} 14. Bxd5+
{[%clk 0:02:52.4]} 14... Kh8 {[%clk 0:02:12]} 15. Bxa8 {[%clk 0:02:49.1]} 15...
Qxa8 {[%clk 0:02:00.3]} 16. Nb3 {[%clk 0:02:37.3]} 16... Rc8 {[%clk 0:01:51.8]}
17. Qa5 {[%clk 0:02:37.1]} 17... Ne6 {[%clk 0:01:44.6]} 18. Be3 {[%clk
0:02:34.1]} 18... a6 {[%clk 0:01:37.3]} 19. c5 {[%clk 0:02:26.6]} 19... d5
{[%clk 0:01:36.7]} 20. Rad1 {[%clk 0:02:23.6]} 20... Bb5 {[%clk 0:01:16.4]} 21.
Rfe1 {[%clk 0:02:23.3]} 21... g5 {[%clk 0:01:12.9]} 22. Bd4 {[%clk 0:02:16.9]}
22... Nxd4 {[%clk 0:00:52.2]} 23. Nxd4 {[%clk 0:02:17.8]} 23... Rxc5 {[%clk
0:00:52.4]} 24. a4 {[%clk 0:02:14.6]} 1-0

[Event "*** SCC Grand Prix: Titled Tuesday Blitz"]
[Site "Chess.com"]
[Date "2020.07.07"]
[Round "4"]
[White "mbachez"]
[Black "Bhagya_2312"]
[Result "1-0"]
[WhiteElo "2429"]
[BlackElo "2118"]
[TimeControl "180+1"]
[EndTime "10:37:16 PDT"]
[Termination "mbachez won by resignation"]

1. d4 {[%clk 0:03:00.9]} 1... d5 {[%clk 0:02:49.4]} 2. c4 {[%clk 0:02:52.4]}
2... e6 {[%clk 0:02:49.2]} 3. Nc3 {[%clk 0:02:45.2]} 3... Be7 {[%clk 0:02:48.6]}
4. Nf3 {[%clk 0:02:40.9]} 4... Nf6 {[%clk 0:02:47.5]} 5. Bg5 {[%clk 0:02:41.1]}
5... O-O {[%clk 0:02:45.3]} 6. e3 {[%clk 0:02:40.4]} 6... h6 {[%clk 0:02:45.5]}
7. Bxf6 {[%clk 0:02:39.9]} 7... Bxf6 {[%clk 0:02:44.8]} 8. cxd5 {[%clk
0:02:39.9]} 8... exd5 {[%clk 0:02:43]} 9. Bd3 {[%clk 0:02:38.2]} 9... Re8 {[%clk
0:02:40]} 10. O-O {[%clk 0:02:38]} 10... c6 {[%clk 0:02:35.1]} 11. Rc1 {[%clk
0:02:37.9]} 11... Be7 {[%clk 0:02:17.4]} 12. Ne5 {[%clk 0:02:34.8]} 12... Bd6
{[%clk 0:02:16.9]} 13. f4 {[%clk 0:02:34.6]} 13... Nd7 {[%clk 0:02:14.7]} 14.
Qh5 {[%clk 0:02:32.3]} 14... Qe7 {[%clk 0:02:09.3]} 15. Rce1 {[%clk 0:02:31.2]}
15... Nf6 {[%clk 0:02:04.1]} 16. Qf3 {[%clk 0:02:30.7]} 16... Nd7 {[%clk
0:01:43.8]} 17. Kh1 {[%clk 0:02:27.3]} 17... Nf8 {[%clk 0:01:43.6]} 18. e4
{[%clk 0:02:23.9]} 18... f6 {[%clk 0:01:41.2]} 19. exd5 {[%clk 0:02:23.1]} 19...
fxe5 {[%clk 0:01:35.4]} 20. fxe5 {[%clk 0:02:23]} 20... Bb4 {[%clk 0:01:28.8]}
21. d6 {[%clk 0:02:15.9]} 21... Qe6 {[%clk 0:01:28]} 22. d5 {[%clk 0:02:13.6]}
22... cxd5 {[%clk 0:01:23.9]} 23. Nxd5 {[%clk 0:02:13.4]} 23... Nd7 {[%clk
0:00:32.1]} 24. Nxb4 {[%clk 0:02:08]} 1-0

[Event "*** SCC Grand Prix: Titled Tuesday Blitz"]
[Site "Chess.com"]
[Date "2020.07.07"]
[Round "4"]
[White "DishonorOnYourCow"]
[Black "TimKett"]
[Result "1-0"]
[WhiteElo "2325"]
[BlackElo "2161"]
[TimeControl "180+1"]
[EndTime "10:37:17 PDT"]
[Termination "DishonorOnYourCow won by resignation"]

1. d4 {[%clk 0:03:00.9]} 1... d5 {[%clk 0:02:58.5]} 2. c4 {[%clk 0:02:59.6]}
2... e6 {[%clk 0:02:58.3]} 3. Nc3 {[%clk 0:02:58.7]} 3... c5 {[%clk 0:02:57.8]}
4. cxd5 {[%clk 0:02:58.6]} 4... exd5 {[%clk 0:02:57.9]} 5. Nf3 {[%clk
0:02:59.1]} 5... Nc6 {[%clk 0:02:57.9]} 6. g3 {[%clk 0:02:59.3]} 6... Nf6 {[%clk
0:02:57.9]} 7. Bg2 {[%clk 0:02:59.8]} 7... cxd4 {[%clk 0:02:58.1]} 8. Nxd4
{[%clk 0:02:58.9]} 8... Bc5 {[%clk 0:02:58.6]} 9. Nxc6 {[%clk 0:02:56]} 9...
bxc6 {[%clk 0:02:57.9]} 10. O-O {[%clk 0:02:56.5]} 10... O-O {[%clk 0:02:57.4]}
11. Na4 {[%clk 0:02:55.7]} 11... Bb6 {[%clk 0:02:56.8]} 12. Nxb6 {[%clk
0:02:45.6]} 12... Qxb6 {[%clk 0:02:55.6]} 13. b3 {[%clk 0:02:41.2]} 13... Re8
{[%clk 0:02:49.4]} 14. Be3 {[%clk 0:02:37.3]} 14... Rxe3 {[%clk 0:02:34.1]} 15.
fxe3 {[%clk 0:02:33.7]} 15... Qxe3+ {[%clk 0:02:34.6]} 16. Kh1 {[%clk
0:02:33.4]} 16... Ng4 {[%clk 0:02:31.3]} 17. Bxd5 {[%clk 0:01:46.1]} 17... Qh6
{[%clk 0:00:42.4]} 18. Bxf7+ {[%clk 0:01:43]} 1-0